Cogmind - Beta 16.1 @@@ ROGUE MODE // 2026.02.26 @ 21:21:03 Player: parasect Result: Self-destructed Performance ------------- Evolutions (3) 1500 Regions Visited (12) 2400 Robots Destroyed (148) 740 Value Destroyed (4705) 4705 Prototype IDs (24) 480 Alien Tech Used (0) 0 Bonus (1069) 1069 TOTAL SCORE: 10894 Bonus ------- High Alert Combat Kills 412 Follower Combat Kills 493 Entered Garrisons 200 Friendly Fire -36 Cogmind --------- Core Integrity 528/700 Matter 295/300 Energy 148/150 System Corruption 2% Temperature Cool (13) Movement Flying (102) Ox1 Location -7/Factory Parts ------- > --- POWER (1) -------- Micro Nuclear Core > --- PROPULSION (4) --- Improved Flight Unit Improved Flight Unit Improved VTOL Module > --- UTILITY (5) ------ Small Storage Unit Advanced Signal Interpreter Hacking Suite > --- WEAPON (3) ------- Remote Datajack Axe > --- INVENTORY (8) ---- Improved Cesium-ion Thruster Improved Medium Armor Plating Improved System Shield System Restoration Module Mini Assault Cannon Remote Datajack Peak State ------------ > --- POWER ------------ Micro Nuclear Core > --- PROPULSION ------- Improved Flight Unit Improved Flight Unit Improved Flight Unit Improved Flight Unit > --- UTILITY ---------- Experimental Sensor Array Advanced Signal Interpreter Improved Propulsion Shielding Hacking Suite Hacking Suite > --- WEAPON ----------- Remote Datajack Axe > --- INVENTORY -------- Improved VTOL Module Core Analyzer Advanced ECM Suite Hardlight Generator System Shield [Rating: 47] Favorites ----------- Power Improved Ion Engine Engine Improved Ion Engine Power Core Light Nuclear Core Propulsion Light Treads Treads Light Treads Leg Aluminum Leg Wheel Armored Wheel Flight Unit Improved Flight Unit Utility Huge Storage Unit Device Improved Heat Sink Storage Huge Storage Unit Processor Advanced Targeting Computer Hackware Hacking Suite Protection Hardened Medium Armor Plating Weapon Heavy Assault Rifle Energy Gun Improved Medium Laser Energy Cannon Beam Cannon Ballistic Gun Heavy Assault Rifle Ballistic Cannon Magnetic Acceleration Cannon Launcher Rocket Launcher Special Weapon Remote Datajack Impact Weapon Heavy Flail Slashing Weapon Axe Special Melee Weapon Datajack Build | -11 -10 -10 -9 -9 -9 -8 -8 -8 -8 -7 -7 -7 ------- Run | Yrd Mat Min Mat Min Exi Min Mat Gar Mat Fac Was Fac Slots Evolved 6 | . . . 2 . . . 2 . . 2 . . Power . | . . . . . . . . . . . . . Propulsion 2 | . . . 1 . . . 1 . . . . . Utility 3 | . . . . . . . 1 . . 2 . . Weapon 1 | . . . 1 . . . . . . . . . Parts Attached 109 | 1 9 2 29 1 . 2 4 20 28 7 . 6 Power 12 | . 2 . 2 . . . 1 3 1 2 . 1 Engine 7 | . 2 . 2 . . . 1 1 . 1 . . Core 5 | . . . . . . . . 2 1 1 . 1 Reactor . | . . . . . . . . . . . . . Propulsion 45 | . 2 . 19 . . . 1 5 17 . . 1 Treads 18 | . . . 10 . . . 1 5 2 . . . Leg 16 | . 2 . 5 . . . . . 9 . . . Wheel 4 | . . . 4 . . . . . . . . . Hover . | . . . . . . . . . . . . . Flight 7 | . . . . . . . . . 6 . . 1 Utility 25 | 1 3 . 3 . . 1 2 5 4 4 . 2 Device 6 | 1 1 . 1 . . . 1 1 . . . 1 Storage 3 | . 1 . 1 . . . . . . 1 . . Processor 4 | . . . . . . . . 1 1 1 . 1 Hackware 2 | . . . . . . . . . . 2 . . Protection 10 | . 1 . 1 . . 1 1 3 3 . . . Artifact . | . . . . . . . . . . . . . Weapon 27 | . 2 2 5 1 . 1 . 7 6 1 . 2 Energy Gun 4 | . . . 1 1 . . . 1 . . . 1 Energy Cannon 2 | . . 1 1 . . . . . . . . . Ballistic Gun 11 | . 1 . 2 . . 1 . 3 4 . . . Ballistic Cannon 2 | . . . . . . . . . 1 . . 1 Launcher 3 | . 1 . . . . . . 2 . . . . Special Weapon 1 | . . . . . . . . . . 1 . . Impact Weapon 2 | . . 1 . . . . . 1 . . . . Slashing Weapon 1 | . . . . . . . . . 1 . . . Piercing Weapon . | . . . . . . . . . . . . . Special Melee Weapon 1 | . . . 1 . . . . . . . . . Unidentified Prototypes 4 | . . . 1 . . . 1 . 1 . . 1 Parts Lost 40 | . 1 3 3 1 . . 1 6 20 . . 5 Power 4 | . . 1 2 . . . . . 1 . . . Propulsion 18 | . . . 1 . . . 1 5 8 . . 3 Utility 8 | . 1 . . . . . . 1 4 . . 2 Weapon 10 | . . 2 . 1 . . . . 7 . . . Highest Loss Streak 16 | . 1 2 2 1 . . 1 3 16 . . 3 To Critical Strikes . | . . . . . . . . . . . . . Average Backups 19 | 3 11 14 20 24 25 23 24 24 22 5 7 7 Power . | 1 1 1 . 1 1 1 1 1 . . . . Propulsion 7 | 2 4 5 6 10 10 10 9 7 7 1 2 2 Utility 6 | . 4 5 6 5 6 5 5 9 9 4 5 4 Weapon 4 | . 1 1 5 7 8 6 6 5 3 . . . Tool/Special . | . . . . . . . . . . . . . Unused Backups 43 | . 7 . 8 . . . 1 5 9 5 1 7 Power 3 | . 2 . . . . . 1 . . . . . Propulsion 10 | . 3 . . . . . . 3 3 . . 1 Utility 25 | . 2 . 7 . . . . 1 4 5 1 5 Weapon 4 | . . . 1 . . . . 1 2 . . . Tool/Special 1 | . . . . . . . . . . . . 1 Average Slot Usage (%) 96 | . 99 95 96 100 100 100 95 99 85 84 92 90 Engine 8 | . 14 13 10 11 11 11 9 1 . . . . Core 2 | . . . . . . . . 7 5 3 7 7 Treads 21 | . . . 19 33 33 33 36 35 22 . . . Leg 7 | . 28 28 6 . . . . . 9 . . . Wheel 1 | . . . 7 . . . . . . . . . Flight 2 | . . . . . . . . . 1 29 30 29 Device 7 | . 11 14 10 11 11 8 . . . 6 . 3 Storage 10 | . 14 14 11 11 11 11 9 9 8 1 7 7 Processor 2 | . . . . . . . . 6 9 7 7 7 Hackware 1 | . . . . . . . . . . 14 15 12 Protection 3 | . 2 . . . . 2 13 11 7 5 7 4 Energy Gun 5 | . . . 8 11 11 11 9 2 4 . . . Energy Cannon 2 | . . 1 10 . . . . . . . . . Ballistic Gun 16 | . 28 22 10 22 11 21 18 20 13 . . . Peak Build Rating 47 | 7 10 11 23 21 20 21 29 32 36 47 42 46 Average Rating 21 | 6 8 9 17 20 20 20 21 27 29 43 41 42 On Entrance 21 | 6 7 10 11 20 21 20 20 23 32 25 41 42 Avg Prop Armor Cover (%) 10 | . . . . . . . . . 11 10 . . Naked Turns . | . . . . . . . . . . . . . Heaviest Build 107 | 13 32 31 97 97 95 101 106 107 105 19 19 20 Greatest Support 86 | 20 20 20 60 60 60 60 80 86 86 20 20 21 Greatest Overweight (x) 7 | . 1 1 7 1 1 1 1 1 4 . . . Average Overweight (x) . | . . 1 1 1 1 1 1 1 1 . . . Largest Inventory Capacity 25 | 8 15 15 25 25 25 25 25 25 25 8 8 8 Average Capacity 20 | 8 13 15 21 25 25 25 25 25 24 5 8 8 Most Carried 25 | 6 15 15 25 25 25 25 25 25 25 8 8 8 Average Carried 19 | 3 11 14 20 24 24 23 24 24 22 5 7 7 Final Capacity 25 | 8 15 15 25 25 25 25 25 25 5 8 8 8 Final Carried 25 | 4 15 14 25 25 24 23 23 25 5 7 8 6 Class Distribution -------------------- 33% | Scavenger-Gunner 27% | Scavenger-Mutant 10% | Mutant 9% | Scavenger-Tank 6% | Gunner 5% | Hacker-Sprinter Dominant Class ---------------- Mutant | -10/Materials Scavenger-Mutant | -10/Mines Scavenger-Gunner | -9/Materials Scavenger-Gunner | -9/Mines Scavenger-Mutant | -9/Exiles Scavenger-Gunner | -8/Mines Scavenger-Tank | -8/Materials Scavenger-Mutant | -8/Garrison Scavenger-Gunner | -8/Materials Hacker-Sprinter | -7/Factory Hacker-Sprinter | -7/Waste Hacker-Sprinter | -7/Factory Resources | -11 -10 -10 -9 -9 -9 -8 -8 -8 -8 -7 -7 -7 ----------- Run | Yrd Mat Min Mat Min Exi Min Mat Gar Mat Fac Was Fac Matter Collected 3861 | 249 431 260 714 131 10 59 114 958 514 245 . 176 Remotely . | . . . . . . . . . . . . . Salvage Created 4742 | 191 509 97 1653 418 . 93 165 580 598 295 . 143 Parts 313 | 17 33 4 103 33 . 16 8 36 38 12 . 13 Haulers Intercepted 8 | . . . 6 . . . . . . 1 . 1 Recyclers Shooed 4 | . 1 . . . . . . . 2 1 . . Parts Field Recycled . | . . . . . . . . . . . . . Retrieved Matter . | . . . . . . . . . . . . . Parts Self-Destructed . | . . . . . . . . . . . . . Prevented . | . . . . . . . . . . . . . Parts Restored 1 | . . . . . . . . . . . . 1 Broken 1 | . . . . . . . . . . . . 1 Kills | -11 -10 -10 -9 -9 -9 -8 -8 -8 -8 -7 -7 -7 ------- Run | Yrd Mat Min Mat Min Exi Min Mat Gar Mat Fac Was Fac Combat Hostiles Destroyed 109 | . 12 3 34 13 . 7 3 19 17 . . 1 Melee 4 | . . . 1 . . . . 1 1 . . 1 Guns 72 | . 12 2 17 13 . 7 3 13 5 . . . Cannons 15 | . . . 12 . . . . . 3 . . . AOE 17 | . . . 4 . . . . 5 8 . . . Classes Destroyed 19 | 2 3 2 4 1 . . . 3 3 1 . . Worker 3 | . . 1 . . . 1 . . . 1 . . Builder 6 | . . . 2 1 . 1 1 . 1 . . . Tunneler 5 | 5 . . . . . . . . . . . . Hauler 8 | . . . 6 . . . . . . 1 . 1 Recycler 7 | 1 . . 2 . . . . . 1 3 . . Mechanic 2 | . . . . . . . . . . 1 . 1 Operator 1 | . . . 1 . . . . . . . . . Watcher 6 | . 2 . 3 . . . . . 1 . . . Swarmer 34 | . 2 . 15 5 . 7 . 3 2 . . . Cutter 2 | . . . . . . . . 2 . . . . Grunt 48 | . 10 2 11 7 . . 3 8 7 . . . Brawler 1 | . . . . . . . . . 1 . . . Duelist 1 | . . . . 1 . . . . . . . . Protector 2 | . . . . . . . . . 2 . . . Sentry 11 | . . . 8 . . . . 1 2 . . . Demolisher 2 | . . 1 . . . . . . 1 . . . Specialist 3 | . . . . . . . . 2 1 . . . Hunter 2 | . . . . . . . . . 2 . . . Programmer 4 | . . . . . . . . 3 . . . 1 Best Kill Streak 8 | 4 4 2 7 4 . 4 2 3 8 2 . 1 Combat Bots Only 7 | . 4 2 5 4 . 4 2 3 7 . . 1 Max Kills in Single Turn 3 | 1 1 1 2 1 . 2 2 3 2 1 . 1 Gunslinging 1 | . . . . . . 1 1 . . . . . Exploded 3 | . . . 2 . . . . 3 2 . . . Melee 1 | . . . 1 . . . . 1 1 . . 1 Uniques/NPCs Destroyed . | . . . . . . . . . . . . . Combat | -11 -10 -10 -9 -9 -9 -8 -8 -8 -8 -7 -7 -7 -------- Run | Yrd Mat Min Mat Min Exi Min Mat Gar Mat Fac Was Fac Hostile Shots Fired 754 | . 67 14 137 49 . 16 14 119 285 2 . 51 Missed 193 | . 19 2 35 11 . 3 2 30 69 2 . 20 Hits 561 | . 48 12 102 38 . 13 12 89 216 . . 31 Melee 6 | . . . . 1 . . . 3 2 . . . Projectile 555 | . 48 12 102 37 . 13 12 86 214 . . 31 AOE 8 | . . 1 . . . . . 2 5 . . . Critical Strikes 26 | . . . 3 . . 1 1 10 9 . . 2 Actively Blocked 4 | . . . . . . . . 2 . . . 2 Damage Taken 8128 | . 580 192 1239 406 . 94 178 1618 3282 . . 539 Core 1086 | . 129 21 172 78 . . . 157 357 . . 172 Absorbed by Shields . | . . . . . . . . . . . . . Redirected to Shielding 361 | . . . . . . . . 93 163 . . 105 Regen/Repaired (Parts) 170 | . . . 98 . . . . . . 72 . . Core Remaining (%) 45 | 100 . 40 . . . 37 . . 6 . . . Volleys Fired 337 | 12 51 12 100 21 . 8 9 69 41 10 . 4 Largest 3 | 2 2 2 3 3 . 3 3 3 3 1 . 1 Hottest 139 | 40 40 40 139 102 . 102 102 112 121 5 . 5 Shots Fired 742 | 24 101 20 252 63 . 23 27 145 73 10 . 4 Gun 580 | 24 100 20 143 63 . 23 27 131 49 . . . Cannon 119 | . . . 105 . . . . . 14 . . . Launcher 29 | . 1 . 4 . . . . 14 10 . . . Special 14 | . . . . . . . . . . 10 . 4 Kinetic 458 | 24 100 20 77 42 . 15 18 103 59 . . . Thermal 241 | . . . 171 21 . 8 9 28 4 . . . Explosive 29 | . 1 . 4 . . . . 14 10 . . . Electromagnetic . | . . . . . . . . . . . . . Robot Hit Streak 18 | 12 9 6 18 8 . 8 7 14 11 2 . 3 Robot Miss Streak 7 | 1 3 1 7 3 . 3 1 4 2 4 . 1 Penetration Max . | . . . . . . . . . . . . . Secondary Targets 11 | . 1 . . 4 . 2 1 . 3 . . . Max Gunslinging Chain 1 | . 1 . . 1 . 1 1 . 1 . . . Shots Hit Robots 491 | 18 67 15 143 41 4 15 21 89 52 20 . 6 Core Hits 226 | 7 28 8 60 18 . 7 9 43 38 5 . 3 Critical Kills 1 | . . . . . . . . 1 . . . . Critical Parts Destroyed 2 | . . 1 1 . . . . . . . . . Critical Strikes 15 | . . 1 7 . . . . 3 3 1 . . Burn 7 | . . . 5 . . . . 1 1 . . . Destroy 2 | . . . 1 . . . . 1 . . . . Blast 2 | . . . . . . . . . 2 . . . Smash 3 | . . 1 1 . . . . 1 . . . . Sever 1 | . . . . . . . . . . 1 . . Melee Attacks 88 | . . 2 8 . 4 1 . 19 1 25 . 28 Impact 29 | . . 2 8 . . . . 19 . . . . Slashing 54 | . . . . . . . . . 1 25 . 28 Piercing . | . . . . . . . . . . . . . Sneak Attacks 15 | . . . . . 4 1 . . . 8 . 2 Combat Hostiles . | . . . . . . . . . . . . . Follow-up Attacks . | . . . . . . . . . . . . . Damage Inflicted 10966 | 223 922 247 3059 784 . 283 351 2106 1938 878 . 175 Guns 6085 | 223 902 182 1362 711 . 232 351 1502 620 . . . Cannons 1461 | . . . 1148 . . . . . 313 . . . Explosions 1733 | . . . 329 . . . . 452 952 . . . Melee 1357 | . . 26 96 . . . . 152 30 878 . 175 Ramming 330 | . 20 39 124 73 . 51 . . 23 . . . Kinetic 4802 | 223 902 182 609 424 . 139 246 1214 863 . . . Thermal 2744 | . . . 1901 287 . 93 105 288 70 . . . Explosive 1733 | . . . 329 . . . . 452 952 . . . Electromagnetic . | . . . . . . . . . . . . . Impact 274 | . . 26 96 . . . . 152 . . . . Slashing 1083 | . . . . . . . . . 30 878 . 175 Piercing . | . . . . . . . . . . . . . Highest Corruption 7 | . . . . . . . . 7 7 . . 2 Average Corruption 6 | . . . . . . . . 6 7 . . 1 Corruption Purged . | . . . . . . . . . . . . . Corruption Blocked . | . . . . . . . . . . . . . Effects 75 | . . . . . . . . 40 33 . . 2 Message Errors 21 | . . . . . . . . 8 12 . . 1 Matter Fused 14 | . . . . . . . . 9 5 . . . Heat Flow Errors 7 | . . . . . . . . 5 1 . . 1 Energy Discharges 9 | . . . . . . . . 5 4 . . . Parts Rejected 2 | . . . . . . . . . 2 . . . Data Loss (minor) 8 | . . . . . . . . 4 4 . . . Data Loss (major) 4 | . . . . . . . . 2 2 . . . Misfires 4 | . . . . . . . . 4 . . . . Alerts 3 | . . . . . . . . 2 1 . . . Weapon Failures 3 | . . . . . . . . 1 2 . . . Overload Shots . | . . . . . . . . . . . . . Overflow Damage 296 | . . 26 46 1 . . . 35 . 188 . . Projectiles 8 | . . . 8 . . . . . . . . . Explosions 51 | . . . 16 . . . . 35 . . . . Melee 237 | . . 26 22 1 . . . . . 188 . . Knockbacks 3 | . 1 . 1 . . . . . 1 . . . Impact 2 | . 1 . 1 . . . . . . . . . Kinetic 1 | . . . . . . . . . 1 . . . Secondary . | . . . . . . . . . . . . . Self-Inflicted Damage 260 | . . . 33 . . . . 184 43 . . . Shots 8 | . . . 1 . . . . 6 1 . . . Rammed 21 | . . . 10 6 . 3 1 . 1 . . . Targets Rammed 40 | . 7 6 12 7 . 5 1 . 2 . . . Kicked 16 | . 7 6 2 . . . . . 1 . . . Crushed 3 | . . . . 1 . 2 . . . . . . Highest Temperature 283 | . 9 . 263 20 . . 225 283 139 . . 103 Average Temperature 66 | . 3 . 54 7 . . 91 93 36 . . 23 Received Heat Transfer 2535 | . 309 81 363 117 . . 126 234 1143 . . 162 Effects 4 | . . . . . . . . 4 . . . . Energy Bleed 1 | . . . . . . . . 1 . . . . Interference 3 | . . . . . . . . 3 . . . . Siege Activations . | . . . . . . . . . . . . . Martial Activations . | . . . . . . . . . . . . . Shielding Activations . | . . . . . . . . . . . . . Robots Disrupted . | . . . . . . . . . . . . . Combat Hostiles . | . . . . . . . . . . . . . Robots Corrupted 1 | . . 1 . . . . . . . . . . Combat Hostiles 1 | . . 1 . . . . . . . . . . Parts Fried 2 | . . 2 . . . . . . . . . . Impact Corruptions 4 | . . 1 2 1 . . . . . . . . Robots Melted . | . . . . . . . . . . . . . Combat Hostiles . | . . . . . . . . . . . . . Parts Melted 6 | . . . 6 . . . . . . . . . Heat Transferred 6168 | . . . 4292 592 . 185 222 627 250 . . . Parts Sabotaged . | . . . . . . . . . . . . . Parts Stolen . | . . . . . . . . . . . . . Parts Stripped . | . . . . . . . . . . . . . Power Chain Reactions . | . . . . . . . . . . . . . Alert | -11 -10 -10 -9 -9 -9 -8 -8 -8 -8 -7 -7 -7 ------- Run | Yrd Mat Min Mat Min Exi Min Mat Gar Mat Fac Was Fac Maximum Alert Level 4 | . . . 2 1 . . . 4 3 1 . . Low Security (%) 60 | 100 100 100 27 82 . 100 100 18 . 97 100 100 Level 1 13 | . . . 44 17 . . . 12 . 2 . . Level 2 17 | . . . 27 . . . . 25 83 . . . Level 3 6 | . . . . . . . . 30 16 . . . Level 4 2 | . . . . . . . . 12 . . . . Level 5 . | . . . . . . . . . . . . . High Security . | . . . . . . . . . . . . . Max Security . | . . . . . . . . . . . . . Peak Influence 1260 | 15 155 31 495 265 . 90 50 1260 763 288 10 154 Initial 614 | . 3 31 . 175 . . . 26 614 288 10 . Average 250 | 3 64 3 293 118 . 13 4 640 635 9 3 85 Influence Increases 4856 | 30 458 86 1073 445 . 185 90 1334 696 99 . 360 Destroy 0b10 Robot/C 2480 | . 240 60 680 340 . 140 60 560 380 . . 20 Destroy 0b10 Robot/NC 215 | 30 10 5 70 5 . 10 5 5 35 30 . 10 Destroy Leader 522 | . 64 20 178 60 . 20 10 30 126 2 . 12 Allied During Kill 187 | . . . . 10 . . . 150 27 . . . Trap Triggered on 0b10 10 | . . . . . . . . 10 . . . . Successful Hack 185 | . 19 . 44 . . . . 44 20 17 . 41 Select Force Hacks 90 | . 60 . 30 . . . . . . . . . Disable Machine 105 | . 15 . 15 . . . . 30 30 15 . . Anti-Garrison Action 400 | . . . . . . . . 400 . . . . Destroy Structure 212 | . 5 1 26 . . . . 90 63 5 . 22 Lose Combat Pursuer 450 | . 45 . 30 30 . 15 15 15 15 30 . 255 Influence Decreases 4740 | 25 382 166 623 861 35 185 50 114 1322 703 30 244 Entered New Map 1390 | . 2 50 1 276 35 . . 14 646 346 20 . Time Decay 2515 | 25 370 96 592 514 . 185 50 . 416 63 10 194 Lost Part 380 | . 10 20 30 10 . . . 60 200 . . 50 Lost Ally 161 | . . . . 61 . . . 40 60 . . . Purge Threat 294 | . . . . . . . . . . 294 . . Squads Dispatched 14 | . 3 . 3 . . . 1 . 5 1 . 1 Investigation 3 | . 2 . 1 . . . . . . . . . Extermination 2 | . . . . . . . . . . 1 . 1 Reinforcement 6 | . 1 . 2 . . . 1 . 2 . . . Assault 2 | . . . . . . . . . 2 . . . Garrison 1 | . . . . . . . . . 1 . . . Intercept . | . . . . . . . . . . . . . Searches Triggered . | . . . . . . . . . . . . . Construction Impeded 1 | . . . . . . . . . 1 . . . Haulers Reinforced . | . . . . . . . . . . . . . Active Scanning Responses . | . . . . . . . . . . . . . Cargo Convoy Interrupts . | . . . . . . . . . . . . . Stealth | -11 -10 -10 -9 -9 -9 -8 -8 -8 -8 -7 -7 -7 --------- Run | Yrd Mat Min Mat Min Exi Min Mat Gar Mat Fac Was Fac Distress Signals 5 | . . . 1 . . . . . 4 . . . Communications Jammed . | . . . . . . . . . . . . . Distress Signals . | . . . . . . . . . . . . . Times Spotted 201 | . 22 3 49 17 . 7 6 24 37 6 6 24 Peak Tracking Total 10 | . 4 2 5 4 . 4 3 4 7 4 6 10 Tactical Retreats 16 | . 2 . 1 2 . 1 1 1 1 1 . 6 Traps | -11 -10 -10 -9 -9 -9 -8 -8 -8 -8 -7 -7 -7 ------- Run | Yrd Mat Min Mat Min Exi Min Mat Gar Mat Fac Was Fac Traps Triggered 5 | . . . 1 . . . . 2 . 1 . 1 Indirectly . | . . . . . . . . . . . . . Trap Hack Attempts 17 | . . . 17 . . . . . . . . . Triggered . | . . . . . . . . . . . . . Disarmed . | . . . . . . . . . . . . . Reprogrammed 1 | . . . 1 . . . . . . . . . Reused 1 | . . . . . . . . 1 . . . . Traps Extracted . | . . . . . . . . . . . . . Installed 1 | . . . . . . . . 1 . . . . Triggered 1 | . . . . . . . . 1 . . . . Most Traps Carried 1 | . . . . . . . . 1 . . . . Machines | -11 -10 -10 -9 -9 -9 -8 -8 -8 -8 -7 -7 -7 ---------- Run | Yrd Mat Min Mat Min Exi Min Mat Gar Mat Fac Was Fac Machines Disabled 13 | . 1 . 1 . . . . 8 2 1 . . Max in Single Turn 2 | . 1 . 1 . . . . 2 1 1 . . Garrison Relay 4 | . . . . . . . . 4 . . . . Machines Repaired . | . . . . . . . . . . . . . Machines Dismantled . | . . . . . . . . . . . . . Machines Sabotaged . | . . . . . . . . . . . . . Overloaded Fab Kills . | . . . . . . . . . . . . . Hacking | -11 -10 -10 -9 -9 -9 -8 -8 -8 -8 -7 -7 -7 --------- Run | Yrd Mat Min Mat Min Exi Min Mat Gar Mat Fac Was Fac Machines Accessed 42 | . 8 . 11 . 1 . 2 3 7 7 . 3 Terminals 28 | . 6 . 8 . . . 1 3 6 3 . 1 Fabricators . | . . . . . . . . . . . . . Repair Stations 5 | . . . 1 . . . . . . 3 . 1 Recycling Units 3 | . 2 . 1 . . . . . . . . . Scanalyzers 4 | . . . 1 . . . . . 1 1 . 1 Garrison Access 1 | . . . . . . . 1 . . . . . Total Hacks 123 | . 20 . 35 . 1 . 7 5 17 28 . 10 Successful 65 | . 10 . 16 . 1 . 2 3 11 16 . 6 Failed 57 | . 9 . 19 . . . 5 2 6 12 . 4 Catastrophic 5 | . 3 . . . . . . . 2 . . . Database Lockouts 1 | . 1 . . . . . . . . . . . Manual 52 | . 13 . 10 . . . 6 2 5 13 . 3 Terminals 89 | . 18 . 26 . . . 6 5 11 17 . 6 Fabricators . | . . . . . . . . . . . . . Repair Stations 14 | . . . 4 . . . . . . 8 . 2 Recycling Units 4 | . 2 . 2 . . . . . . . . . Scanalyzers 14 | . . . 3 . . . . . 6 3 . 2 Garrison Access 1 | . . . . . . . 1 . . . . . Terminal Hacks 31 | . 6 . 8 . 1 . . 3 5 6 . 2 Record 1 | . . . . . 1 . . . . . . . Robot Analysis 4 | . 1 . 2 . . . . . . 1 . . Prototype ID Bank 4 | . 2 . 2 . . . . . . . . . Branch Access Points 2 | . . . . . . . . . . 1 . 1 Emergency Access Points 3 | . . . . . . . . 1 1 . . 1 Terminal Index 1 | . . . 1 . . . . . . . . . Unreport Threat 2 | . . . . . . . . . . 2 . . Locate Traps 5 | . 2 . 2 . . . . . . 1 . . Investigation Status 1 | . 1 . . . . . . . . . . . Recall Extermination 1 | . . . . . . . . . . 1 . . Hauler Manifests 1 | . . . 1 . . . . . . . . . Zone Layout 4 | . . . . . . . . . 4 . . . Garrison Registry 1 | . . . . . . . . 1 . . . . Security Stations 1 | . . . . . . . . 1 . . . . Fabricator Hacks . | . . . . . . . . . . . . . Repair Station Hacks 9 | . . . 2 . . . . . . 5 . 2 Scan Component 5 | . . . 1 . . . . . . 3 . 1 Repair 4 | . . . 1 . . . . . . 2 . 1 Recycling Unit Hacks . | . . . . . . . . . . . . . Scanalyzer 12 | . . . 3 . . . . . 5 3 . 1 Insert Component 3 | . . . 1 . . . . . 1 . . 1 Analyze 2 | . . . 1 . . . . . 1 . . . Retrieve Study 7 | . . . 1 . . . . . 3 3 . . Garrison Access Hacks 1 | . . . . . . . 1 . . . . . Unlock Access 1 | . . . . . . . 1 . . . . . Unauthorized Hacks 12 | . 4 . 3 . . . 1 . 1 2 . 1 Terminals 9 | . 2 . 2 . . . 1 . 1 2 . 1 Botnet 7 | . 2 . . . . . 1 . 1 2 . 1 Disrupt 2 | . . . 2 . . . . . . . . . Fabricators . | . . . . . . . . . . . . . Repair Stations . | . . . . . . . . . . . . . Recycling Units 3 | . 2 . 1 . . . . . . . . . Tunnel 3 | . 2 . 1 . . . . . . . . . Scanalyzers . | . . . . . . . . . . . . . Garrison Access . | . . . . . . . . . . . . . Data Cores Recovered . | . . . . . . . . . . . . . Used . | . . . . . . . . . . . . . Hacking Detections 35 | . 6 . 9 . . . 2 3 7 6 . 2 Full Trace Events . | . . . . . . . . . . . . . Feedback Events . | . . . . . . . . . . . . . Feedback Blocked . | . . . . . . . . . . . . . Robot Schematics Acquired . | . . . . . . . . . . . . . Robots Built . | . . . . . . . . . . . . . Authchips . | . . . . . . . . . . . . . Time . | . . . . . . . . . . . . . Total Robot Build Rating . | . . . . . . . . . . . . . Part Schematics Acquired 2 | . . . 1 . . . . . 1 . . . Parts Built . | . . . . . . . . . . . . . Authchips . | . . . . . . . . . . . . . Time . | . . . . . . . . . . . . . Total Part Build Rating . | . . . . . . . . . . . . . Part Studies Acquired 7 | . . . 1 . . . . . 3 3 . . Parts Repaired 3 | . . . 1 . . . . . . 2 . . Time 183 | . . . 26 . . . . . . 89 . 68 Parts Recycled . | . . . . . . . . . . . . . Recycled Matter . | . . . . . . . . . . . . . Retrieved Matter . | . . . . . . . . . . . . . Retrieved Components . | . . . . . . . . . . . . . Parts Scanalyzed 2 | . . . 1 . . . . . 1 . . . Part Schematics Acquired 2 | . . . 1 . . . . . 1 . . . Parts Damaged . | . . . . . . . . . . . . . Bothacking | -11 -10 -10 -9 -9 -9 -8 -8 -8 -8 -7 -7 -7 ------------ Run | Yrd Mat Min Mat Min Exi Min Mat Gar Mat Fac Was Fac Used RIF Installer . | . . . . . . . . . . . . . Robots Hacked 9 | . . . . . 4 1 . . . 3 . 1 Non-combat 8 | . . . . . 3 1 . . . 3 . 1 Combat 1 | . . . . . 1 . . . . . . . Robot Hacks Applied 11 | . . . . . 4 1 . . . 4 . 2 parse_system 5 | . . . . . 4 1 . . . . . . no_distress 2 | . . . . . . . . . . 1 . 1 find_chute 2 | . . . . . . . . . . 2 . . find_fabricator 2 | . . . . . . . . . . 1 . 1 Relay Couplers Released 15 | . . . . . . . . 15 . . . . Machine Destruction 15 | . . . . . . . . 15 . . . . Fabnet Peak Effective % . | . . . . . . . . . . . . . Robots Rewired 6 | . . . . . . . . 6 . . . . Allies Hacked . | . . . . . . . . . . . . . Hacks Repelled . | . . . . . . . . . . . . . Allies | -11 -10 -10 -9 -9 -9 -8 -8 -8 -8 -7 -7 -7 -------- Run | Yrd Mat Min Mat Min Exi Min Mat Gar Mat Fac Was Fac Total Allies 10 | . . . . 4 . . . 6 . . . . Largest Group 6 | . . . . 3 . . . 6 4 . . . Highest-Rated Group 132 | . . . . 40 . . . 132 90 . . . Highest-Rated Ally 31 | . . . . 31 . . . 24 24 . . . Initial Warlord ECA Mod 8 | . . . . . . . . . 8 7 7 7 Total Orders 11 | . . . . . . . . 11 . . . . STAY 5 | . . . . . . . . 5 . . . . FOLLOW 6 | . . . . . . . . 6 . . . . Ally Attacks 94 | . . . . 28 . . . 39 27 . . . Total Damage 1734 | . . . . 324 . . . 824 586 . . . Kills 19 | . . . . 4 . . . 9 6 . . . Allies Corrupted . | . . . . . . . . . . . . . Allies Melted . | . . . . . . . . . . . . . Intel | -11 -10 -10 -9 -9 -9 -8 -8 -8 -8 -7 -7 -7 ------- Run | Yrd Mat Min Mat Min Exi Min Mat Gar Mat Fac Was Fac Active Infowar (turns) 999 | 14 544 . . . . . 1 . . 439 . 1 Sensors 415 | . . . . . . . 1 . . 414 . . Seismic 558 | 14 544 . . . . . . . . . . . T.N.C. 1 | . . . . . . . . . . . . 1 Machine Analysis 25 | . . . . . . . . . . 25 . . Robot Analysis Total 4 | . 1 . 2 . . . . . . 1 . . Derelict Logs Recovered 4 | . . 2 . 2 . . . . . . . . Drone Launches . | . . . . . . . . . . . . . Drone Recoveries . | . . . . . . . . . . . . . Exploration | -11 -10 -10 -9 -9 -9 -8 -8 -8 -8 -7 -7 -7 ------------- Run | Yrd Mat Min Mat Min Exi Min Mat Gar Mat Fac Was Fac Turns Passed 12291 | 96 1018 1337 2331 1416 537 1148 347 2062 1013 488 63 435 Spaces Moved 6662 | 12 453 668 1024 650 260 553 150 770 394 810 169 749 Core . | . . . . . . . . . . . . . Treads 3289 | . . . 603 650 260 553 150 770 303 . . . Legs 1355 | 12 453 668 160 . . . . . 62 . . . Wheels 261 | . . . 261 . . . . . . . . . Hover . | . . . . . . . . . . . . . Flight 1757 | . . . . . . . . . 29 810 169 749 Fastest Speed 28 | 120 120 190 120 200 200 200 200 200 31 31 31 28 Average Speed 150 | 120 169 190 171 200 200 200 200 211 207 32 31 30 Slowest Speed 330 | 120 190 190 240 200 200 200 200 220 330 37 31 31 Overloaded Moves . | . . . . . . . . . . . . . Propulsion Burnouts . | . . . . . . . . . . . . . Robots Hopped 7 | . . . . . . . . . . 1 . 6 Potential Cave-ins 2 | . . . . . . . . . . . . 2 Cave-ins Triggered 1 | . . . . . . . . . . . . 1 Exploration Rate (%) 61 | 3 89 98 79 98 60 99 16 85 44 21 98 13 Regions Visited 12 Branch Regions 4 Pre-discovered Areas 7 | . 2 2 1 1 1 . . . . . . . Known Exits Taken 3 | . . 1 . . . . 1 . 1 . . . Unknown Exits Taken 6 | 1 1 . 1 1 1 1 . . . . . . Scrap Searched 5 | . . 2 . 2 . 1 . . . . . . Spaces Dug 80 | . 3 1 . . . . . 47 . 5 . 24 Terrain Destroyed 238 | . 3 1 22 . . . . 112 71 5 . 24 Melee 41 | . . 1 . . . . . 11 . 5 . 24 Projectile 3 | . . . . . . . . . 3 . . . AOE 194 | . 3 . 22 . . . . 101 68 . . . Terrain Rammed . | . . . . . . . . . . . . . Walls Destroyed . | . . . . . . . . . . . . . Machines Disabled . | . . . . . . . . . . . . . Actions | -11 -10 -10 -9 -9 -9 -8 -8 -8 -8 -7 -7 -7 --------- Run | Yrd Mat Min Mat Min Exi Min Mat Gar Mat Fac Was Fac Total 8145 | 70 596 708 1380 713 275 573 176 1058 536 980 180 900 Wait 580 | 42 62 15 111 32 10 3 3 65 18 107 9 103 Move 6638 | 11 452 667 1023 649 259 552 150 769 393 808 168 737 Hop 7 | . . . . . . . . . . 1 . 6 Pick Up 107 | 1 11 1 34 2 . . 5 21 16 11 2 3 Fast Attach 30 | 1 . 1 8 . . . . 5 6 5 . 4 Attach 62 | . 1 3 15 1 . 1 4 8 22 3 . 4 Detach 22 | . . 1 7 . . 1 1 3 6 . . 3 Swap 70 | . 8 . 15 . 1 1 1 31 7 4 . 2 Drop 98 | 3 4 . 30 1 1 1 2 19 24 6 1 6 Fire 337 | 12 51 12 100 21 . 8 9 69 41 10 . 4 Melee 88 | . . 2 8 . 4 1 . 19 1 25 . 28 Ram 3 | . . . 3 . . . . . . . . . Kick 16 | . 7 6 2 . . . . . 1 . . . Crush 21 | . . . 7 7 . 5 1 . 1 . . . Escape Stasis . | . . . . . . . . . . . . . Rewire 48 | . . . . . . . . 48 . . . . Trap 18 | . . . 17 . . . . 1 . . . . Miscellaneous . | . . . . . . . . . . . . . Route ------- -11/Scrapyard -10/Materials (discovered 6 exits: *Mat x3 / [*Min x2] / [*Sub]) -10/Mines (discovered 3 exits: *Mat x2 / [*Sub]) -9/Materials (discovered 3 exits: *Mat x2 / [*Min]) -9/Mines (discovered 3 exits: *Mat x2 / *Exi) -9/Exiles (discovered 2 exits: [*Min x2]) -8/Mines (discovered 2 exits: *Mat x2) -8/Materials -8/Garrison (discovered 3 exits: *Mat x3) -8/Materials -7/Factory (discovered 4 exits: [*Fac] / Sto / Low x2) -7/Waste -7/Factory (discovered 4 exits: Sto x2 / Low x2) History --------- Turn | Location | Event 52 | -11/Scrapyard | Discovered new exit (range 2) 97 | -11/Scrapyard | Entered Materials 114 | -10/Materials | Discovered new exit (range 5) 202 | -10/Materials | Central database locked down 242 | -10/Materials | Discovered new exit (range 6) 329 | -10/Materials | Build established: Mutant 440 | -10/Materials | Discovered new exit (range 14) 762 | -10/Materials | Discovered new exit (range 7) 768 | -10/Materials | Discovered new exit (range 16) 867 | -10/Materials | Core integrity fell below 50% 1059 | -10/Materials | Discovered new exit (range 16) 1115 | -10/Materials | Entered Mines 1120 | -10/Mines | Met a Derelict bent on vengeance 1153 | -10/Mines | Discovered new exit (range 9) 1189 | -10/Mines | Build established: Scavenger-Mutant 1240 | -10/Mines | Discovered new exit (range 12) 1630 | -10/Mines | Learned location of Recycling (-7) 1882 | -10/Mines | Assembled infested the area 2128 | -10/Mines | Found DCF Scrap (12 items) 2149 | -10/Mines | Found a Scrap Suit stashed away for nefarious purposes 2217 | -10/Mines | Identified exit to Materials 2228 | -10/Mines | Learned location of Storage (-7) 2452 | -10/Mines | Entered Materials 2452 | -9/Materials | Evolved 2 slots: Propulsion x1, Weapon x1 3022 | -9/Materials | Discovered new exit (range 15) 3098 | -9/Materials | Repaired Lgt. Treads 3467 | -9/Materials | Build established: Scavenger-Gunner 3908 | -9/Materials | Build established: Gunner 3908 | -9/Materials | Discovered new exit (range 9) 4355 | -9/Materials | Discovered new exit (range 8) 4657 | -9/Materials | Build established: Scavenger-Gunner 4783 | -9/Materials | Entered Mines 4843 | -9/Mines | Escorted by a lone wolf Derelict 4981 | -9/Mines | Learned 4 Materials zone layouts 5036 | -9/Mines | A Derelict revealed a hidden shortcut to a safe place 5058 | -9/Mines | Core integrity fell below 50% 5173 | -9/Mines | Discovered new exit (range 6) 5265 | -9/Mines | A weapon hastily lodged in a ceiling crevice suddenly fell to the ground 5309 | -9/Mines | Assisted by bots powering up and referring to "LRC-V3" 5531 | -9/Mines | Deemed a non-threat by the Exiles lab entrance 5579 | -9/Mines | Discovered new exit (range 13) 5585 | -9/Mines | Learned Materials emergency access door positions 5615 | -9/Mines | Received a Rocket Launcher from a helpful Derelict 5863 | -9/Mines | Found a damaged Exp. Sensor Array with a note attached 5867 | -9/Mines | Found Prototype Device 6189 | -9/Mines | Discovered new exit (range 5) 6199 | -9/Mines | Entered Exiles 6247 | -9/Exiles | Discovered new exit (range 15) 6272 | -9/Exiles | Met 8R-AWN 6317 | -9/Exiles | Met EX-HEX 6423 | -9/Exiles | Met EX-BIN 6505 | -9/Exiles | Build established: Scavenger-Mutant 6524 | -9/Exiles | Met EX-DEC 6597 | -9/Exiles | Learned location of Zion (-7) 6715 | -9/Exiles | Discovered new exit (range 10) 6736 | -9/Exiles | Entered Mines 6796 | -8/Mines | Discovered new exit (range 10) 7106 | -8/Mines | Build established: Scavenger-Gunner 7285 | -8/Mines | Discovered new exit (range 8) 7884 | -8/Mines | Build established: Scavenger-Tank 7884 | -8/Mines | Entered Materials 7884 | -8/Materials | Evolved 2 slots: Propulsion x1, Utility x1 8054 | -8/Materials | Identified Exp. Sensor Array 8231 | -8/Materials | Identified exit to Garrison 8231 | -8/Materials | Entered Garrison 8863 | -8/Garrison | Triggered checkpoint 8952 | -8/Garrison | Garrison Relay disabled 9039 | -8/Garrison | Lost 3 parts (2n1u) 9285 | -8/Garrison | Triggered checkpoint 9315 | -8/Garrison | Triggered checkpoint 9377 | -8/Garrison | Triggered checkpoint 9427 | -8/Garrison | Garrison Relay disabled 9560 | -8/Garrison | Discovered new exit (range 62) 9560 | -8/Garrison | Discovered new exit (range 36) 9560 | -8/Garrison | Discovered new exit (range 32) 9671 | -8/Garrison | Build established: Scavenger-Mutant 9680 | -8/Garrison | Garrison Relay disabled 9818 | -8/Garrison | Triggered checkpoint 9959 | -8/Garrison | Learned Materials security intel 10284 | -8/Garrison | Build established: Scavenger-Gunner 10293 | -8/Garrison | Entered Materials 10293 | -8/Materials | Accompanied by 4 allies 10439 | -8/Materials | Garrison activated, responded to threat 10693 | -8/Materials | First assault squad dispatched 10781 | -8/Materials | Destroyed 7 combat bots 10946 | -8/Materials | Core integrity fell below 50% 11029 | -8/Materials | Lost 16 parts (1p5n3u7w) 11248 | -8/Materials | Core integrity fell below 20% 11304 | -8/Materials | Discovered new exit (range 6) 11306 | -8/Materials | Identified exit to Factory 11306 | -8/Materials | Entered Factory 11306 | -7/Factory | Evolved 2 slots: Utility x2 11318 | -7/Factory | Identified exit to Storage 11318 | -7/Factory | Identified exit to Lower Caves 11477 | -7/Factory | Discovered new exit (range 9) 11593 | -7/Factory | Repaired Imp. Propulsion Shielding 11646 | -7/Factory | Repaired Imp. Flight Unit 11794 | -7/Factory | Sucked down chute 11794 | -7/Factory | Entered Waste 11800 | -7/Waste | Spotted C-40 Crusher 11804 | -7/Waste | Spotted C-40 Crusher 11807 | -7/Waste | Spotted C-40 Crusher 11811 | -7/Waste | Spotted C-40 Crusher 11811 | -7/Waste | Spotted C-40 Crusher 11812 | -7/Waste | Spotted C-40 Crusher 11853 | -7/Waste | Discovered new exit (range 11) 11857 | -7/Waste | Identified exit to Factory 11857 | -7/Waste | Entered Factory 11950 | -7/Factory | Build established: Hacker-Sprinter 11971 | -7/Factory | Crushed by falling debris 12292 | -7/Factory | Self-destructed Last Messages --------------- 12196_ Acquired Remote Datajack+. 12225_ System corrupted: Heat flow error (+126). 12231_ Dropped Imp. Recalibrator. 12248_ Connecting with Repair Station... >>Scan(Broken Exp. Sensor Array) Scanning Broken Exp. Sensor Array... Ready to Repair: Broken Exp. Sensor Array Rating: 8p Time: 68 >>Repair Repairing Broken Exp. Sensor Array... ETC: 68 12266_ Imp. Propulsion Shielding destroyed. 12272_ Imp. Flight Unit destroyed. 12277_ Acquired 10 matter. 12278_ JGM7S 9SUI9 PSMWN61|VATF> 12282_ Acquired Prototype Ballistic Cannon. 12282_ Identified Mni. Assault Cannon. 12292_ Cld. Cesium-ion Thruster destroyed. Map ----- +----------------------------------------------------+ | ##########???????????????????????????????????????? | | #???????????????????????????????????????? | | #???????????????????????????????????????? | | """"" #???????????????????????????????????????? | | """"" #???????????????????????????????????????? | | """"" #???????????????????????????????????????? | | """"" #???????????????????????????????###?????? | | #????????????????????############"#?????? | | """"" "" #????????????????????# #?????? | | """"" """#????????????????????# #?????? | | """"" R"#?????????##?????###?# #?????? | | """"" """#?????????#"########## #?????? | | #?????????## # #?????? | | ###+################# """" # #?????? | | # ""S"" # ##????? | | # "" "" # "#????? | | # # ##????? | | # # #?????? | | g% r # # #?????? | | ##+######"##### # # #?????? | | ##???# g ###+#############+######?????? | | ! #????# k ?????????? | | [#????# ???????? | | """ #????# k ?????? | | """ [!!#????# ???? | | """ [!!#????# @ a % ?? | | !!!#????##########+############/###########? | | #????????# #???? ??????????? | | ##########????????# #???? [??????????? | | ??????????????????# #???? ??????????? | | ??????????????????#[ """ """ ! #????![ ??????????? | | ??????????????????# """ """ #????[[ ??????????? | | ??????????????????# """ """ #????[ ??????????? | | ??????????????????# #???? ??????????? | | ??????????????????# """ """ #???? ??????????? | | ??????????????????# """ """ #???? ??????????? | | ??????????????????# """ """ #?????????????????? | | ??????????????????# #?????????????????? | | ??????????????????# #?????????????????? | | ??????????????????##############?????????????????? | | ?????????????????????????????????????????????????? | | ?????????????????????????????????????????????????? | | ?????????????????????????????????????????????????? | | ?????????????????????????????????????????????????? | | ?????????????????????????????????????????????????? | | ?????????????????????????????????????????????????? | | ?????????????????????????????????????????????????? | | ?????????????????????????????????????????????????? | | ?????????????????????????????????????????????????? | | ?????????????????????????????????????????????????? | +----------------------------------------------------+ Best States ------------- Heat Dissipation 42 Energy Generation 16 Energy Capacity 275 Matter Stores 300 Matter Capacity 300 Sight Range 16 Robot Scan Range 20 Terrain Scan Density 10 Armor Coverage 300 Resistance: EM 25 Propulsion Shielding 66 Evasion (%) 64 Targeting Accuracy 8 Recoil Reduction 4 Offensive Hacking 20 Item Schematics ----------------- Hcp. Storage Unit | -9/Materials | Scanalyzed Imp. Flight Unit | -8/Materials | Scanalyzed Robot Schematics ------------------ None Fabricated ------------ Nothing Repaired ---------- Lgt. Treads | 30% | -9/Materials Imp. Propulsion Shielding | 41% | -7/Factory Imp. Flight Unit | 67% | -7/Factory Studied --------- Lgt. Treads | -9/Materials | Hacked Autogun | -8/Materials | Hacked Minigun | -8/Materials | Hacked Rocket Launcher | -8/Materials | Hacked Mic. Nuclear Core | -7/Factory | Hacked Axe | -7/Factory | Hacked Remote Datajack | -7/Factory | Hacked Alien Tech Used ----------------- None Achievements -------------- None Challenges ------------ None Game ------ Seed CompactNodeMonowheel Manual? 0 Play Time 01:35:03 Cumulative 126.1 hours Start 2026.02.26 @ 18:15:09 End 2026.02.26 @ 21:21:03 Sessions 7 Manual Loads 0 Difficulty Rogue Special Mode None Game No. 100 Rogue 100 Adventurer 0 Explorer 0 Win Type - Total 14 Types 11/0/1/1/0/0/0/1/0/0 Lore% 54 Gallery% 54 Achievement% 49 Wizard Run 0 Options --------- Layout 2 ASCII 0 Keyboard 1 Movement Numpad Keybinds 0 Fullscreen 2 Font 24/Terminus Map View 50x44 Zoom Use 0% Tactical HUD 1 Map Filters NONE Filters NONE Steam 1 RUN: d9df1618-087b-43be-913c-dd6075ba0393